bitfinex-derivatives/quotes_BTCF0:USTF0_20241223
["timestamp","ask_amount","ask_price","bid_price","bid_amount"]
[1734924318983,0.052458,95419.0,95415.0,0.00157105]
[1734924321497,0.057458,95419.0,95415.0,0.00157105]
[1734924322088,0.058458,95419.0,95415.0,0.00157105]
[1734924322290,0.006,95419.0,95415.0,0.00157105]
[1734924322491,0.006,95419.0,95416.0,0.413259]
[1734924322692,0.006,95419.0,95417.0,0.052458]
[1734924323900,0.3608,95428.0,95419.0,0.052458]
[1734924324094,0.3608,95428.0,95416.0,0.3608]
[1734924324294,0.3608,95428.0,95421.0,0.052456]
[1734924324593,0.3608,95428.0,95422.0,0.052455]
[1734924325188,0.45359467,95439.0,95424.0,0.3608]
[1734924325487,0.45359467,95439.0,95427.0,0.052453]
[1734924325796,0.052448,95436.0,95427.0,0.052453]
[1734924326398,0.45359467,95439.0,95425.0,0.05797105]
[1734924326599,0.052452,95432.0,95425.0,0.0564]
[1734924326998,0.052452,95432.0,95426.0,0.00157105]
[1734924327296,0.001,95428.0,95426.0,0.00157105]
[1734924327902,0.3711578,95439.0,95426.0,0.00157105]
[1734924328202,0.3711578,95439.0,95425.0,0.0564]
[1734924328400,0.3711578,95439.0,95428.0,0.052453]
[1734924328898,0.3711578,95439.0,95425.0,0.4172]
[1734924329093,0.3711578,95439.0,95432.0,0.052449]
[1734924329094,0.3608,95439.0,95432.0,0.052449]
[1734924329293,0.3618,95439.0,95426.0,0.00157105]
[1734924329492,0.001,95439.0,95437.0,0.052446]
[1734924329705,0.001,95439.0,95438.0,0.0575]
[1734924329997,0.09222362,95440.0,95439.0,0.052446]
[1734924330305,0.09222362,95444.0,95443.0,0.052443]
[1734924330493,0.09222362,95444.0,95443.0,0.413243]
[1734924331505,0.09822362,95444.0,95443.0,0.413243]
[1734924331697,0.006,95444.0,95443.0,0.413243]
[1734924331896,0.0015722,95459.0,95449.0,0.05244]
[1734924332096,0.12372623,95471.0,95457.0,0.3608]
[1734924332293,0.12372623,95471.0,95468.0,0.05243]
[1734924332901,0.12372623,95474.0,95470.0,0.052429]
[1734924333099,0.12372623,95474.0,95472.0,0.052427]
[1734924333397,0.03542623,95474.0,95472.0,0.052427]
[1734924333699,0.15465779,95480.0,95472.0,0.052427]
[1734924333700,1e-08,95480.0,95479.0,0.052424]
[1734924333902,0.09628934,95486.0,95485.0,0.05242]
[1734924334695,0.09628934,95486.0,95479.0,0.3608]
[1734924334696,0.052409,95506.0,95479.0,0.3608]
[1734924334902,0.3608,95507.0,95492.0,0.3608]
[1734924335206,0.3608,95507.0,95505.0,0.052409]
[1734924335395,0.3608,95528.0,95508.0,0.052408]
[1734924335599,0.3608,95528.0,95517.0,0.3608]
[1734924335801,0.3608,95528.0,95519.0,0.052402]
[1734924336703,0.052394,95533.0,95519.0,0.052402]
[1734924337201,0.0524,95523.0,95517.0,0.3608]
[1734924337398,0.052401,95521.0,95514.0,0.3608]
[1734924337600,0.413201,95521.0,95519.0,0.009]
[1734924337903,0.3608,95521.0,95519.0,0.009]
[1734924339200,0.052397,95527.0,95519.0,0.009]
[1734924339804,0.3608,95521.0,95519.0,0.009]
[1734924340708,0.3618,95521.0,95519.0,0.007]
[1734924340907,0.001,95521.0,95519.0,0.007]
[1734924341208,0.3618,95521.0,95519.0,0.007]
[1734924341399,0.001,95521.0,95519.0,0.007]
[1734924342902,0.052387,95547.0,95533.0,0.052394]
[1734924343208,0.052387,95547.0,95520.0,0.15678886]
[1734924343209,0.413175,95569.0,95554.0,0.052382]
[1734924343406,0.413175,95569.0,95543.0,0.3608]
[1734924343407,0.413175,95569.0,95556.0,0.413181]
[1734924343909,0.3608,95569.0,95556.0,0.3608]
[1734924344104,0.3608,95569.0,95560.0,0.052379]
[1734924344308,0.3608,95580.0,95568.0,0.052375]
[1734924344514,0.3608,95580.0,95570.0,0.15812626]
[1734924344808,0.3608,95580.0,95570.0,0.21050026]
[1734924345212,0.01039227,95586.0,95570.0,0.21050026]
[1734924345396,0.3608,95591.0,95570.0,0.15812626]
[1734924345595,0.1,95600.0,95579.0,0.15812626]
[1734924345800,0.052359,95598.0,95578.0,0.052369]
[1734924346295,0.0011649,95588.0,95578.0,0.052369]
[1734924347002,0.0011649,95588.0,95573.0,0.3608]
[1734924347209,0.0011649,95581.0,95578.0,0.007]
[1734924347396,0.00148485,95580.0,95578.0,0.007]
[1734924347806,0.00148485,95580.0,95578.0,0.009]
[1734924348300,0.00148485,95580.0,95567.0,0.052375]
[1734924348506,0.00148485,95579.0,95578.0,0.009]
[1734924349295,0.05385385,95579.0,95578.0,0.009]
[1734924350102,0.05385385,95579.0,95565.0,0.413177]
[1734924350306,0.00148485,95579.0,95565.0,0.3608]
[1734924350504,0.00148485,95572.0,95565.0,0.3608]
[1734924350809,0.052375,95569.0,95553.0,0.3608]
[1734924351306,0.3608,95566.0,95565.0,0.002]
[1734924351513,0.36228485,95566.0,95565.0,0.002]
[1734924352413,0.00148485,95566.0,95565.0,0.002]
[1734924353106,0.3608,95598.0,95565.0,0.92750016]
[1734924353306,0.1,95600.0,95596.0,0.05236]
[1734924354411,0.1,95600.0,95594.0,0.3608]
[1734924354804,0.1,95600.0,95596.0,0.009]
[1734924358207,0.1,95600.0,95599.0,0.052358]
[1734924359710,0.1,95600.0,95599.0,0.061358]
[1734924361298,0.1,95600.0,95599.0,0.053358]
[1734924361605,0.104,95600.0,95599.0,0.053358]
[1734924361812,0.104,95600.0,95599.0,0.06434774]
[1734924363104,0.104,95600.0,95599.0,0.01198974]
[1734924363304,0.156357,95600.0,95599.0,0.01198974]
[1734924363505,0.156357,95600.0,95599.0,0.001]
[1734924364113,0.16675608,95600.0,95599.0,0.001]
[1734924364616,0.052361,95593.0,95585.0,0.3608]
[1734924368823,0.052363,95591.0,95585.0,0.3608]
[1734924369008,0.052363,95591.0,95585.0,0.3698]
[1734924370416,0.3608,95599.0,95585.0,0.3698]
[1734924370619,0.052365,95587.0,95585.0,0.009]
[1734924370812,0.3608,95586.0,95555.0,0.2444504]
[1734924371006,0.413176,95566.0,95555.0,0.2444504]
[1734924371315,0.413176,95566.0,95557.0,0.052381]
[1734924371620,0.052377,95564.0,95555.0,0.2444504]
[1734924372220,0.3608,95557.0,95549.0,0.3608]
[1734924372418,0.052385,95551.0,95549.0,0.3608]
[1734924372817,0.052385,95551.0,95540.0,0.3608]
[1734924373411,0.052385,95551.0,95549.0,0.004]
[1734924374017,0.052385,95551.0,95540.0,0.3608]
[1734924374018,0.01628975,95554.0,95552.0,0.052383]
[1734924374416,0.01628975,95557.0,95552.0,0.052383]
[1734924374716,0.01628975,95557.0,95537.0,0.01057587]
[1734924374717,0.052397,95527.0,95526.0,0.21003533]
[1734924374920,0.052401,95521.0,95520.0,0.36186473]
[1734924375113,0.052403,95518.0,95509.0,0.42357552]
[1734924375422,0.3608,95510.0,95509.0,0.42217552]
[1734924375618,0.413206,95510.0,95509.0,0.42217552]
[1734924376017,0.3608,95510.0,95509.0,0.42217552]
[1734924376517,0.3618,95510.0,95509.0,0.43117552]
[1734924377221,0.3618,95510.0,95509.0,0.009]
[1734924378213,0.001,95510.0,95509.0,0.009]
[1734924378819,0.005,95510.0,95502.0,0.01044514]
[1734924379122,0.005,95510.0,95509.0,0.20847768]
[1734924379322,0.005,95510.0,95509.0,0.052407]
[1734924379514,0.3608,95518.0,95514.0,0.052404]
[1734924380121,0.001,95510.0,95505.0,0.052409]
[1734924380827,0.001,95510.0,95507.0,0.052408]
[1734924381021,0.001,95510.0,95502.0,0.007]
[1734924381323,0.3618,95518.0,95517.0,0.052403]
[1734924381909,0.001,95518.0,95517.0,0.052403]
[1734924383025,0.3608,95539.0,95517.0,0.32528182]
[1734924383321,0.3608,95539.0,95524.0,0.3608]
[1734924383519,0.3608,95539.0,95518.0,0.0576]
[1734924383720,0.3608,95531.0,95518.0,0.0576]
[1734924383923,0.3608,95531.0,95529.0,0.052396]
[1734924384111,0.3618,95539.0,95521.0,0.3608]
[1734924384626,0.3618,95539.0,95536.0,0.052392]
[1734924385723,0.3608,95539.0,95536.0,0.052392]
[1734924387025,0.3628,95539.0,95536.0,0.052392]
[1734924387215,0.37129442,95559.0,95545.0,0.052387]
[1734924387727,0.42367442,95559.0,95545.0,0.052387]
[1734924387929,0.3608,95546.0,95545.0,0.052387]
[1734924388118,0.3608,95546.0,95536.0,0.052392]
[1734924388625,0.3608,95546.0,95529.0,0.37310541]
[1734924388826,0.3608,95546.0,95538.0,0.052391]
[1734924389028,0.3608,95546.0,95540.0,0.05239]
[1734924389225,0.3608,95546.0,95529.0,0.37162541]
[1734924389226,0.3608,95546.0,95544.0,0.052387]
[1734924389921,0.3618,95546.0,95544.0,0.052387]
[1734924390322,0.3608,95546.0,95544.0,0.052387]
[1734924390522,0.3658,95546.0,95544.0,0.052387]
[1734924391722,0.3658,95546.0,95533.0,0.052393]
[1734924392215,0.3658,95546.0,95529.0,0.3608]
[1734924392414,0.3658,95546.0,95527.0,0.01056293]
[1734924392415,0.3608,95535.0,95527.0,0.01056293]
[1734924392636,0.3608,95535.0,95510.0,0.10526627]
[1734924392925,0.3608,95535.0,95509.0,0.0544]
[1734924392926,0.3608,95535.0,95520.0,0.46606627]
[1734924393126,0.3608,95535.0,95521.0,0.0524]
[1734924393422,0.3608,95535.0,95520.0,0.46750627]
[1734924393626,0.3608,95535.0,95534.0,0.052393]
[1734924393927,0.3628,95546.0,95545.0,0.052387]
[1734924394122,0.3608,95546.0,95545.0,0.052387]
[1734924395622,0.3608,95546.0,95545.0,0.20955481]
[1734924396420,0.3698,95546.0,95545.0,0.21055481]
[1734924396723,0.00157078,95569.0,95555.0,0.052383]
[1734924396724,0.3608,95556.0,95555.0,0.052383]
[1734924396932,0.00157078,95569.0,95566.0,0.052376]
[1734924397830,0.00157078,95569.0,95568.0,0.052375]
[1734924399626,0.00157078,95569.0,95568.0,0.061375]
[1734924399824,0.3608,95572.0,95568.0,0.009]
[1734924400025,0.3608,95572.0,95571.0,0.052374]
[1734924400527,0.3608,95584.0,95583.0,0.052367]
[1734924401923,0.12467089,95591.0,95590.0,0.052363]
[1734924402224,0.1,95600.0,95585.0,0.3608]
[1734924402429,0.1,95600.0,95599.0,0.052358]
[1734924403529,0.1,95600.0,95599.0,0.061358]
[1734924407026,0.3608,95612.0,95599.0,0.009]
[1734924407226,0.3608,95612.0,95611.0,0.052352]
[1734924409128,0.3608,95612.0,95611.0,0.06308895]
[1734924409327,0.3608,95612.0,95603.0,0.3608]
[1734924409538,0.3608,95612.0,95611.0,0.009]
[1734924411838,0.3608,95612.0,95611.0,0.004]
[1734924412038,0.052355,95609.0,95582.0,0.3608]
[1734924412249,0.3608,95584.0,95569.0,0.18207679]
[1734924412434,0.3608,95584.0,95576.0,0.052373]
[1734924413238,0.3608,95584.0,95582.0,0.009]
[1734924413539,0.052369,95583.0,95582.0,0.009]
[1734924413941,0.3608,95584.0,95582.0,0.009]
[1734924414133,0.3608,95584.0,95582.0,0.061369]
[1734924414439,0.3608,95584.0,95547.0,0.052388]
[1734924414440,0.052379,95565.0,95546.0,0.052389]
[1734924414642,0.413179,95565.0,95548.0,0.01057159]
[1734924414942,0.413179,95565.0,95546.0,0.052389]
[1734924415538,0.413179,95565.0,95564.0,0.00456933]
[1734924416139,0.413179,95565.0,95564.0,0.00156933]
[1734924416443,0.416179,95565.0,95564.0,0.00156933]
[1734924416936,0.42646178,95565.0,95564.0,0.00156933]
[1734924417138,0.42646178,95565.0,95530.0,0.052397]
[1734924417139,0.67408278,95565.0,95530.0,0.052397]
[1734924417329,0.3608,95531.0,95530.0,0.052397]
[1734924417734,0.3608,95531.0,95530.0,0.20967817]
[1734924418244,0.36089671,95531.0,95530.0,0.20967817]
[1734924418444,0.36089671,95531.0,95530.0,0.21867817]
[1734924419135,0.36589671,95531.0,95530.0,0.001]
[1734924419730,0.36089671,95531.0,95526.0,0.06719587]
[1734924419947,0.36089671,95531.0,95530.0,0.002]
[1734924420542,0.36089671,95531.0,95530.0,0.054396]
[1734924421539,0.36389671,95531.0,95530.0,0.052396]
[1734924422533,0.36089671,95531.0,95530.0,0.052396]
[1734924422747,0.36189671,95531.0,95530.0,0.052396]
[1734924424049,0.3608,95558.0,95530.0,0.93630047]
[1734924424238,0.3608,95558.0,95557.0,0.052381]
[1734924425437,0.3608,95566.0,95549.0,0.0563]
[1734924425645,0.3608,95566.0,95557.0,0.001]
[1734924425846,0.3608,95566.0,95559.0,0.052379]
[1734924426647,0.3608,95566.0,95561.0,0.052379]
[1734924427651,0.052372,95573.0,95557.0,0.003]
[1734924427652,0.3608,95562.0,95559.0,0.05238]
[1734924428243,0.05238,95558.0,95557.0,0.001]
[1734924428549,0.052382,95556.0,95548.0,0.01042592]
[1734924428850,0.3608,95549.0,95540.0,0.15792887]
[1734924429540,0.3608,95549.0,95530.0,0.21482887]
[1734924429741,0.3608,95549.0,95539.0,0.21031987]
[1734924429949,0.3608,95549.0,95543.0,0.052388]
[1734924430736,0.3608,95549.0,95548.0,0.007]
[1734924430941,0.001,95556.0,95548.0,0.007]
[1734924431243,0.001,95556.0,95554.0,0.052383]
[1734924431547,0.3608,95562.0,95554.0,0.052383]
[1734924431940,0.3608,95562.0,95544.0,0.052388]
[1734924432136,0.3608,95554.0,95548.0,0.009]
[1734924432446,0.052384,95552.0,95548.0,0.009]
[1734924432750,0.052384,95552.0,95493.0,0.36398897]
[1734924432751,0.052396,95531.0,95516.0,0.18199448]
[1734924432950,0.3608,95520.0,95516.0,0.23439748]
[1734924433334,0.3608,95520.0,95518.0,0.052402]
[1734924433539,0.3608,95520.0,95516.0,0.19277542]
[1734924433540,0.3608,95532.0,95524.0,0.052399]
[1734924434542,0.413197,95528.0,95516.0,0.06318494]
[1734924434742,0.413197,95528.0,95511.0,0.0553]
[1734924434743,0.3608,95520.0,95511.0,0.0553]
[1734924434947,0.3608,95512.0,95511.0,0.0553]
[1734924440160,0.3608,95530.0,95529.0,0.052397]
[1734924440746,0.10529434,95540.0,95522.0,0.3608]
[1734924441045,0.10529434,95540.0,95533.0,0.052394]
[1734924441244,0.3608,95543.0,95522.0,0.3608]
[1734924441454,0.10529434,95540.0,95537.0,0.052392]
[1734924441754,0.12462864,95555.0,95538.0,0.3608]
[1734924442052,0.12462864,95555.0,95538.0,0.63885754]
[1734924442244,0.12462864,95555.0,95543.0,0.052388]
[1734924442441,0.3608,95557.0,95543.0,0.052388]
[1734924442643,0.052383,95555.0,95543.0,0.052388]
[1734924443451,0.052387,95546.0,95538.0,0.3652]
[1734924443649,0.052387,95546.0,95538.0,0.3638]
[1734924443845,0.3608,95547.0,95538.0,0.416191]
[1734924444353,0.3608,95547.0,95538.0,0.413191]
[1734924444546,0.3608,95547.0,95543.0,0.006]
[1734924445155,0.3648,95547.0,95538.0,0.414671]
[1734924445453,0.3648,95547.0,95540.0,0.05239]
[1734924445655,0.3678,95547.0,95543.0,0.001]
[1734924445852,0.007,95547.0,95543.0,0.001]
[1734924446051,0.3678,95547.0,95543.0,0.001]
[1734924446354,0.052388,95545.0,95521.0,0.23439548]
[1734924446561,0.052397,95530.0,95521.0,0.18199448]
[1734924447054,0.0588,95535.0,95521.0,0.18199448]
[1734924447358,0.3608,95527.0,95521.0,0.18199448]
[1734924447963,0.3608,95527.0,95515.0,0.052404]
[1734924449265,0.3608,95527.0,95517.0,0.052403]
[1734924450556,0.14986086,95534.0,95521.0,0.3608]
[1734924450852,0.14986086,95534.0,95525.0,0.052399]
[1734924451051,0.20225486,95534.0,95525.0,0.052399]
[1734924451657,0.14986086,95534.0,95527.0,0.052398]
[1734924451856,0.058,95534.0,95527.0,0.052398]
[1734924452052,0.058,95534.0,95521.0,0.3608]
[1734924452257,0.002,95534.0,95532.0,0.052395]
[1734924452558,0.004,95534.0,95532.0,0.052395]
[1734924453761,0.004,95534.0,95532.0,0.06283446]
[1734924453962,0.004,95534.0,95533.0,0.51710514]
[1734924454262,0.09386086,95546.0,95533.0,0.63015385]
[1734924454455,0.09386086,95552.0,95545.0,0.3608]
[1734924454656,0.09386086,95552.0,95551.0,0.052385]
[1734924456256,0.0541,95559.0,95554.0,0.052383]
[1734924456460,0.00157067,95562.0,95554.0,0.052383]
[1734924457764,0.00157067,95562.0,95556.0,0.052382]
[1734924458062,0.00157067,95562.0,95554.0,0.002]
[1734924458360,0.00157067,95562.0,95561.0,0.052379]
[1734924459557,0.00157067,95562.0,95556.0,0.002]
[1734924460273,0.00157067,95562.0,95557.0,0.052381]
[1734924460663,0.00257067,95562.0,95561.0,0.007]
[1734924461065,0.00157067,95562.0,95559.0,0.05238]
[1734924461665,0.00157067,95562.0,95556.0,0.001]
[1734924461977,0.413181,95559.0,95549.0,0.052386]
[1734924463465,0.413181,95559.0,95550.0,0.052385]
[1734924464069,0.00157067,95562.0,95555.0,0.052383]
[1734924464263,0.00157067,95562.0,95549.0,0.004]
[1734924464461,0.05238,95561.0,95549.0,0.004]
[1734924464654,0.05238,95561.0,95548.0,0.052387]
[1734924464857,0.001,95559.0,95550.0,0.005]
[1734924465258,0.001,95559.0,95557.0,0.052381]
[1734924466664,0.00157067,95562.0,95557.0,0.052381]
[1734924467469,0.00157067,95562.0,95557.0,0.054381]
[1734924467972,0.00157067,95562.0,95557.0,0.06490749]
[1734924468271,0.00157067,95562.0,95560.0,0.05238]
[1734924470068,0.3608,95561.0,95545.0,0.3608]
[1734924470262,0.41318,95561.0,95560.0,0.007]
[1734924471282,0.41318,95561.0,95545.0,0.3648]
[1734924471974,0.41318,95561.0,95550.0,0.052385]
[1734924472675,0.50704086,95561.0,95550.0,0.052385]
[1734924473167,0.50804086,95561.0,95560.0,0.007]
[1734924473865,0.41318,95561.0,95550.0,0.053385]
[1734924474066,0.3608,95561.0,95550.0,0.001]
[1734924474263,0.3608,95561.0,95559.0,0.05238]
[1734924474458,0.3618,95561.0,95560.0,0.007]
[1734924474770,0.001,95561.0,95560.0,0.007]
[1734924476176,0.09386086,95570.0,95569.0,0.052375]
[1734924476480,0.1557858,95580.0,95579.0,0.05237]
[1734924476676,0.1251548,95581.0,95579.0,0.41317]
[1734924476968,0.1251548,95581.0,95579.0,0.57035137]
[1734924478072,0.1321548,95581.0,95579.0,0.57135137]
[1734924478666,0.007,95581.0,95579.0,0.57135137]
[1734924479263,0.007,95581.0,95579.0,0.58189211]
[1734924486389,0.007,95581.0,95579.0,0.76388659]
[1734924487584,0.007,95581.0,95579.0,0.58189211]
[1734924488572,0.007,95581.0,95579.0,0.01154074]
[1734924488774,0.007,95581.0,95574.0,0.09169448]
[1734924488775,0.416,95580.0,95574.0,0.09169448]
[1734924488977,0.416,95580.0,95554.0,0.3608]
[1734924488978,0.052375,95571.0,95563.0,0.12272414]
[1734924489179,0.052382,95558.0,95557.0,0.18338897]
[1734924489368,0.7216,95564.0,95557.0,0.18338897]
[1734924489774,0.773979,95564.0,95557.0,0.18338897]
[1734924490377,0.78459214,95564.0,95557.0,0.18338897]
[1734924490573,0.78459214,95564.0,95545.0,0.052389]
[1734924490574,0.052381,95561.0,95545.0,0.052389]
[1734924490884,0.10526111,95560.0,95545.0,0.052389]
[1734924491288,0.3608,95553.0,95545.0,0.052389]
[1734924491984,0.3608,95553.0,95545.0,0.001]
[1734924492186,0.052384,95552.0,95545.0,0.001]
[1734924492879,0.052385,95550.0,95545.0,0.001]
[1734924493087,0.052387,95546.0,95545.0,0.001]
[1734924493683,0.052387,95546.0,95530.0,0.052395]
[1734924493986,0.3608,95541.0,95536.0,0.052392]
[1734924495781,0.3658,95541.0,95536.0,0.052392]
[1734924497388,0.3658,95541.0,95526.0,0.052398]
[1734924497587,0.3658,95541.0,95519.0,0.3608]
[1734924497881,0.052396,95531.0,95519.0,0.3608]
[1734924498089,0.10526111,95529.0,95519.0,0.3608]
[1734924498881,0.3608,95523.0,95506.0,0.3609195]
[1734924499189,0.10526111,95516.0,95506.0,0.3609195]
[1734924499486,0.10526111,95516.0,95506.0,0.37124808]
[1734924499688,0.10526111,95516.0,95507.0,0.1527298]
[1734924500079,0.10526111,95516.0,95506.0,0.37264808]
[1734924500278,0.10526111,95516.0,95506.0,0.37124808]
[1734924500890,0.10526111,95520.0,95506.0,0.37124808]
[1734924501192,0.001,95516.0,95507.0,0.001]
[1734924501586,0.10526111,95520.0,95506.0,0.37264808]
[1734924501783,0.001,95516.0,95506.0,0.37224808]
[1734924502294,0.001,95516.0,95507.0,0.001]
[1734924502596,0.001,95516.0,95507.0,0.2061378]
[1734924502797,0.001,95516.0,95515.0,0.3608]
[1734924503096,0.10526111,95540.0,95515.0,0.3608]
[1734924503297,0.10526111,95540.0,95528.0,0.052397]
[1734924503600,0.3608,95542.0,95529.0,0.1133]
[1734924503801,0.3608,95542.0,95537.0,0.052392]
[1734924503802,0.10526111,95540.0,95537.0,0.052392]
[1734924503992,0.3608,95542.0,95537.0,0.052392]
[1734924504702,0.005,95540.0,95537.0,0.052392]
[1734924505097,0.3698,95542.0,95537.0,0.052392]
[1734924506101,0.3698,95542.0,95529.0,0.1133]
[1734924506304,0.009,95542.0,95539.0,0.052391]
[1734924506605,0.2170702,95550.0,95541.0,0.05239]
[1734924506805,0.46606111,95560.0,95545.0,0.3608]
[1734924507009,0.10526111,95560.0,95545.0,0.3608]
[1734924507313,0.10526111,95570.0,95553.0,0.3608]
[1734924507606,0.10526111,95570.0,95554.0,0.0572]
[1734924508311,0.001,95560.0,95554.0,0.0572]
[1734924508708,0.001,95560.0,95554.0,0.1145]
[1734924509603,0.001,95560.0,95554.0,0.0572]
[1734924510404,0.11567247,95570.0,95554.0,0.0612]
[1734924511204,0.11567247,95570.0,95554.0,0.07178073]
[1734924511511,0.11567247,95570.0,95554.0,0.06878073]
[1734924511708,0.007,95560.0,95554.0,0.06878073]
[1734924512209,0.11567247,95570.0,95554.0,0.07178073]
[1734924515319,0.01041136,95570.0,95554.0,0.07178073]
[1734924515517,0.413174,95571.0,95554.0,0.07178073]
[1734924516803,0.413174,95571.0,95554.0,0.06778073]
[1734924517007,0.413174,95571.0,95554.0,0.07078073]
[1734924518015,0.1557858,95580.0,95563.0,0.3608]
[1734924518215,0.1557858,95580.0,95576.0,0.3608]
[1734924518518,0.1557858,95580.0,95579.0,0.413169]
[1734924518902,0.0627858,95580.0,95579.0,0.413169]
[1734924519104,0.01073511,95597.0,95582.0,0.052367]
[1734924519304,0.01073511,95597.0,95584.0,0.052366]
[1734924519509,0.3608,95599.0,95584.0,0.052366]
[1734924520311,0.008,95587.0,95584.0,0.052366]
[1734924520918,0.008,95587.0,95582.0,0.001]
[1734924521118,0.008,95587.0,95586.0,0.052365]
[1734924521722,0.37154562,95599.0,95579.0,0.37268588]
[1734924521921,0.37154562,95599.0,95589.0,0.052363]
[1734924522222,0.37154562,95599.0,95590.0,0.057]
[1734924523224,0.37254562,95599.0,95590.0,0.057]
[1734924523719,0.3608,95591.0,95579.0,0.0014]
[1734924523922,0.052373,95572.0,95558.0,0.052381]
[1734924524119,0.3608,95568.0,95558.0,0.052381]
[1734924525419,0.001,95568.0,95564.0,0.052377]
[1734924526023,0.0085177,95575.0,95564.0,0.052377]
[1734924526222,0.004,95568.0,95564.0,0.052377]
[1734924526625,0.052372,95575.0,95564.0,0.052377]
[1734924526823,0.006,95568.0,95564.0,0.001]
[1734924528117,0.3608,95565.0,95564.0,0.001]
[1734924528318,0.3608,95565.0,95550.0,0.00857058]
[1734924528613,0.052382,95556.0,95544.0,0.1194]
[1734924528818,0.052382,95556.0,95548.0,0.052386]
[1734924529617,0.3618,95565.0,95550.0,0.005]
[1734924529816,0.414177,95565.0,95550.0,0.11026111]
[1734924530025,0.053377,95565.0,95556.0,0.052382]
[1734924531319,0.052377,95565.0,95556.0,0.052382]
[1734924531926,0.00822571,95568.0,95560.0,0.3608]
[1734924532130,0.001,95565.0,95560.0,0.3608]
[1734924532519,0.001,95565.0,95561.0,0.052379]
[1734924532719,0.004,95565.0,95561.0,0.052379]
[1734924534224,0.004,95565.0,95563.0,0.052378]
[1734924534428,0.3608,95569.0,95563.0,0.052378]
[1734924534631,0.001,95565.0,95563.0,0.052378]
[1734924535229,0.3608,95569.0,95563.0,0.052378]
[1734924535424,0.001,95565.0,95561.0,0.005]
[1734924535631,0.052379,95562.0,95561.0,0.005]
[1734924535938,0.052379,95562.0,95553.0,0.052383]
[1734924536233,0.413179,95561.0,95553.0,0.052383]
[1734924537036,0.007,95565.0,95561.0,0.052379]
[1734924537224,0.12524162,95563.0,95561.0,0.052379]
[1734924537527,0.12524162,95563.0,95553.0,0.3608]
[1734924537732,0.12524162,95563.0,95561.0,0.005]
[1734924538327,0.17761762,95567.0,95558.0,0.052381]
[1734924538632,0.001,95563.0,95561.0,0.005]
[1734924541437,0.009,95563.0,95555.0,0.052382]
[1734924541835,0.052377,95565.0,95555.0,0.052382]
[1734924542040,0.001,95563.0,95561.0,0.005]
[1734924542643,0.007,95563.0,95558.0,0.052382]
[1734924544431,0.001,95563.0,95561.0,0.005]
[1734924544740,0.001,95563.0,95562.0,0.45583256]
[1734924544944,0.12524162,95566.0,95565.0,0.052378]
[1734924545239,0.12524162,95568.0,95565.0,0.052378]
[1734924545624,0.12524162,95568.0,95562.0,0.40489256]
[1734924545625,0.052379,95564.0,95562.0,0.04409256]
[1734924545836,0.052383,95557.0,95553.0,0.3608]
[1734924546037,0.052383,95557.0,95542.0,0.06070813]
[1734924546038,0.052383,95557.0,95547.0,0.3608]
[1734924546241,0.052383,95557.0,95542.0,0.052391]
[1734924546739,0.36136001,95562.0,95536.0,0.3608]
[1734924546740,0.052385,95551.0,95536.0,0.3608]
[1734924548033,0.052385,95551.0,95536.0,0.36927193]
[1734924548740,0.055385,95551.0,95536.0,0.36927193]
[1734924548926,0.3608,95546.0,95536.0,0.36927193]
[1734924549436,0.003,95551.0,95545.0,0.3608]
[1734924549744,0.12523539,95557.0,95556.0,0.052381]
[1734924549938,0.12523539,95557.0,95556.0,0.413181]
[1734924550540,0.13356261,95570.0,95558.0,0.05238]
[1734924550841,0.12523539,95570.0,95569.0,0.3608]
[1734924551544,0.12523539,95570.0,95560.0,0.052379]
[1734924551741,0.13363918,95570.0,95560.0,0.052379]
[1734924551936,0.13363918,95570.0,95565.0,0.3608]
[1734924552146,0.00840379,95570.0,95565.0,0.3608]
[1734924552437,0.001,95570.0,95569.0,0.006]
[1734924553043,0.001,95570.0,95569.0,0.052374]
[1734924553836,0.001,95570.0,95565.0,0.008]
[1734924553837,0.3618,95570.0,95565.0,0.008]
[1734924554745,0.12523539,95567.0,95562.0,0.052378]
[1734924555336,0.12523539,95567.0,95565.0,0.007]
[1734924555540,0.12523539,95567.0,95565.0,0.059376]
[1734924555736,0.12523539,95569.0,95565.0,0.059376]
[1734924555931,0.12523539,95569.0,95565.0,0.052376]
[1734924556146,0.006,95567.0,95565.0,0.052376]
[1734924557039,0.052377,95564.0,95562.0,0.001]
[1734924557246,0.36847812,95563.0,95562.0,0.001]
[1734924558337,0.052379,95560.0,95550.0,0.052384]
[1734924558543,0.00769285,95559.0,95550.0,0.052384]
[1734924558742,0.00769285,95558.0,95550.0,0.052384]
[1734924559047,0.00769285,95557.0,95551.0,0.052384]
[1734924559242,0.00769285,95559.0,95551.0,0.052384]
[1734924559442,0.052379,95560.0,95551.0,0.052384]
[1734924559743,0.12544208,95552.0,95551.0,0.052384]
[1734924560646,0.12544208,95552.0,95551.0,0.413184]
[1734924560841,0.005,95557.0,95551.0,0.413184]
[1734924560842,0.12544208,95556.0,95551.0,0.3608]
[1734924561147,0.12544208,95556.0,95552.0,0.052383]
[1734924562445,0.12544208,95557.0,95552.0,0.052383]
[1734924562745,0.004,95556.0,95552.0,0.052383]
[1734924563739,0.12944208,95556.0,95552.0,0.052383]
[1734924564143,0.12944208,95556.0,95555.0,0.052382]
[1734924564835,0.12544208,95556.0,95555.0,0.052382]
[1734924565035,0.13044208,95556.0,95555.0,0.052382]
[1734924565351,0.005,95556.0,95555.0,0.052382]
[1734924565551,0.12544208,95561.0,95556.0,0.052381]
[1734924566244,0.13387415,95563.0,95556.0,0.052381]